[Event "Budapest Chess Festival 2024"]
[Site "Budapest"]
[Date "2024.05.25"]
[Round "3.4"]
[White "Stefansson, Vignir Vatnar"]
[Black "Dragnev, Valentin"]
[Result "0-1"]
[ECO "B13"]
[WhiteElo "2463"]
[BlackElo "2566"]
[Annotator "TA"]
[PlyCount "106"]
[EventDate "2024.05.20"]
[EventType "swiss"]
[EventCountry "HUN"]
[SourceTitle "playchess.com"]
[Source "ChessBase"]
[SourceQuality "1"]
[TimeControl "40/5400+30:1800+30"]

{[%evp 14,106,29,-18,-16,-19,-15,-18,-7,-13,-3,-15,-6,-11,-13,-16,-9,-8,-10,-9,-10,-13,0,0,0,0,7,8,25,0,49,61,41,31,25,23,29,25,22,25,24,24,21,16,17,2,2,0,0,0,14,0,0,0,14,0,0,0,0,0,0,0,0,0,0,0,0,0,33,0,0,-8,-8,-8,-8,-8,-8,-306,-313,-334,-314,-406,-270,-400,-377,-288,-271,-1052,-968,-4134,-2276,-1747,-1563,-1329,-791]} 1. e4 {[%emt 0:00:32]} c6 {[%emt 0:00:58]} 2. d4 {[%emt 0:00:27]} d5 {[%emt 0:00:05]} 3. exd5 {[%emt 0:00:26]} cxd5 {[%emt 0:00:09]} 4. Bd3 {[%emt 0:00:04]} Nf6 {[%emt 0:00:40]} 5. c3 {[%emt 0:00:26]} Bg4 {[%emt 0:00:42]} 6. Nf3 {[%emt 0:04:07]} Nc6 {[%emt 0:02:54]} 7. O-O {[%emt 0:00:23]} e6 {[%emt 0:01:18]} 8. Re1 {[%emt 0:00:55]} (8. h3 {might be stronger.} Bh5 9. Bf4) 8... Bd6 $11 {[%emt 0:01:43]} 9. h3 {[%emt 0:00:36]} Bh5 {[%emt 0:00:53]} 10. Be3 {[%emt 0:00:07]} Qb6 {[%emt 0:12:09] The position is equal.} 11. b3 {[%emt 0:03:58][%cal Bb2b3,Bb3b4][%mdl 32]} Qa5 {[%emt 0:03:24]} 12. b4 {[%emt 0:09:15]} Qc7 {[%emt 0:01:29]} 13. Nbd2 {[%emt 0:00:15] Against Ne4} O-O {[%emt 0:00:27]} 14. Rc1 {[%emt 0:03:29]} Rac8 {[%emt 0:02:58]} 15. Qc2 {[%emt 0:00:48]} Bg6 {[%emt 0:04:08]} 16. Bxg6 {[%emt 0:01:21]} hxg6 {[%emt 0:00:06]} 17. Qd3 {[%emt 0:00:19]} Rfe8 {[%emt 0:05:57]} 18. a3 {[%emt 0:02:16]} Qb8 {[%emt 0:06:58]} 19. Bg5 {[%emt 0:03:58]} Nd7 {[%emt 0:13:15]} 20. c4 {[%emt 0:06:37]} dxc4 $1 {[%emt 0:00:31]} 21. Nxc4 {[%emt 0:00:06]} Bf4 {[%emt 0:00:37]} (21... Nf6 $11 {is more appropriate.}) 22. Bxf4 $14 {[%emt 0:06:13]} Qxf4 {[%emt 0:00:04]} 23. g3 {[%emt 0:01:26]} Qb8 {[%emt 0:06:35]} 24. d5 {[%emt 0:08:38]} exd5 {[%emt 0:00:44]} 25. Qxd5 {[%emt 0:00:09]} Nf6 {[%emt 0:00:58]} 26. Qd6 {[%emt 0:00:36]} Red8 {[%emt 0:03:03]} 27. Qxb8 {[%emt 0:02:22]} Rxb8 28. Red1 {[%emt 0:23:50]} Kf8 {[%emt 0:04:49]} 29. Rxd8+ {[%emt 0:01:18]} Rxd8 {[%emt 0:01:12]} 30. Nce5 {[%emt 0:02:02]} Nxe5 {[%emt 0:03:24]} 31. Nxe5 $11 {[%emt 0:03:11][%mdl 4096] Endgame. KRN-KRN} Ne8 {Repels Rc7} 32. f4 Ke7 {[%emt 0:05:06]} 33. Kf2 {[%emt 0:03:53]} Nd6 {[%emt 0:06:01]} 34. Kf3 {[%emt 0:05:35]} Rc8 {[%emt 0:02:25]} 35. Rxc8 {[%emt 0:00:56]} Nxc8 {[%emt 0:00:01] KN-KN} 36. Nc4 {[%emt 0:01:18]} Ke6 37. Ke4 Ne7 {[%emt 0:07:50]} 38. g4 {[%emt 0:02:01]} f5+ {[%emt 0:00:25]} 39. Ke3 {[%emt 0:01:36]} Nd5+ {[%emt 0:05:09]} 40. Kf3 {[%emt 0:00:00]} Nc3 {[%emt 0:00:00]} 41. Ke3 {[%emt 0:10:05]} Kd5 {[%emt 0:12:14]} 42. Kd3 {[%emt 0:05:08]} Nd1 {[%emt 0:01:05] And now ...Nf2+ would win.} 43. Ne5 {[%emt 0:01:06]} Nf2+ {[%emt 0:05:12]} 44. Ke3 {[%emt 0:02:23]} Nxh3 {[%emt 0:00:45] Strongly threatening ...g5.} 45. Kf3 $2 {[%emt 0:08:09][%mdl 8192] [#] This costs White the game.} ({Don't play} 45. g5 Nxg5 46. Nxg6 Ne4 $17) (45. gxf5 $1 $11 {and White is okay.} gxf5 46. Nf7) 45... Ng5+ $1 $19 {[%emt 0:03:22][%mdl 512]} 46. Ke3 {[%emt 0:00:04][%cal Oe5g6] [#]} (46. Kg2 Ne4) 46... fxg4 $1 {[%emt 0:01:57]} 47. Nxg6 {[%emt 0:02:50]} Nh3 {[%emt 0:01:53] Hoping for ...Kc4.} 48. f5 {[%emt 0:01:59]} (48. Ne7+ $142 Ke6 49. Nc8) 48... a6 {[%emt 0:01:46]} 49. Nf4+ {[%emt 0:01:30] [#]} Ke5 $1 {[%emt 0:05:02]} 50. Nd3+ {[%emt 0:01:14]} (50. Nh5) 50... Kxf5 {[%emt 0:00:57] Black is clearly winning.} 51. Nc5 {[%emt 0:00:03]} g3 {[%emt 0:01:22] ( -> ...g2)} 52. Kf3 {[%emt 0:00:08]} Ng5+ {[%emt 0:00:01]} 53. Kg2 {[%emt 0:00:28]} Ne6 {[%emt 0:00:40] Weighted Error Value: White=0.46/Black=0.06 (flawless) .  Loses game:     	White=1     	---        Mistake:       	White=2     	Black=1      Inaccurate:     	White=2     	Black=2      OK:         	White=16    	Black=14     Best:        	White=3     	Black=3      Strong:       	---       	Black=3      Brilliant:      	---       	Black=1} 0-1

[Event "Budapest Chess Festival 2024"]
[Site "Budapest"]
[Date "2024.05.25"]
[Round "3.5"]
[White "Cabarkapa, Novak"]
[Black "Kadric, Denis"]
[Result "1/2-1/2"]
[ECO "B40"]
[WhiteElo "2444"]
[BlackElo "2558"]
[Annotator "TA"]
[PlyCount "42"]
[EventDate "2024.05.20"]
[EventType "swiss"]
[EventCountry "HUN"]
[SourceTitle "playchess.com"]
[Source "ChessBase"]
[SourceQuality "1"]
[TimeControl "40/5400+30:1800+30"]

{[%evp 17,42,37,45,0,41,39,32,30,34,33,58,59,62,0,0,0,0,0,0,0,0,0,0,0,0,0,0]} 1. e4 {[%emt 0:00:33]} c5 {[%emt 0:00:32]} 2. Nf3 {[%emt 0:00:03]} e6 {[%emt 0:00:03]} 3. d4 {[%emt 0:00:03]} cxd4 {[%emt 0:00:04]} 4. Nxd4 {[%emt 0:00:03]} Nf6 {[%emt 0:00:03][%cal Bg8f6,Bf6d5,Bd5e3][%mdl 32]} 5. Nc3 {[%emt 0:00:03]} Nc6 {[%emt 0:00:02]} 6. Nxc6 {[%emt 0:00:04]} bxc6 {[%emt 0:00:02]} 7. e5 {[%emt 0:00:04]} Nd5 {[%emt 0:00:03]} 8. Ne4 {[%emt 0:00:03]} Qc7 {[%emt 0:00:03]} 9. f4 {[%emt 0:00:04]} Qb6 {[%emt 0:00:02][%cal Od5f4]} 10. a3 {[%emt 0:00:04]} Ne3 {[%emt 0:00:03]} 11. Qd3 {[%emt 0:00:02]} Nxf1 {[%emt 0:00:04]} 12. Rxf1 {[%emt 0:00:03] White is slightly better.} Ba6 {[%emt 0:00:03]} 13. c4 {[%emt 0:00:04]} f5 {[%emt 0:00:03]} 14. exf6 {[%emt 0:00:04] Hoping for Qc3.} d5 {[%emt 0:00:02] [#]} 15. f7+ {[%emt 0:00:06]} Kxf7 $11 {[%emt 0:00:02] The position is equal.} 16. f5 {[%emt 0:00:05]} h6 $36 {[%emt 0:00:05][%cal Oa6c4][%mdl 2048] ...Bxc4! would now be deadly. Black fights for an advantage.} (16... dxe4 17. Qd7+ Be7 18. fxe6+ Kg8 19. Qxe7 $18) 17. Qg3 {[%emt 0:00:08] Dancing on a razor blade.} dxe4 {[%emt 0:00:04]} 18. Qg6+ $1 {[%emt 0:00:04]} Kg8 {[%emt 0:00:01]} 19. Qxe6+ {[%emt 0:00:06]} Kh7 {[%emt 0:00:02] [#] And now ...Rg8 would win.} 20. Qg6+ {[%emt 0:00:05]} Kg8 {[%emt 0:00:00]} 21. Qe6+ {[%emt 0:00:06]} Kh7 {Weighted Error Value: White=0.11 (very precise) /Black=0.11 (very precise) .  Mistake:       	White=1     	---        Inaccurate:     	---       	Black=1      OK:         	White=4     	Black=2      Best:        	White=3     	Black=4      Strong:       	White=1     	---} 1/2-1/2

[Event "Budapest Chess Festival 2024"]
[Site "Budapest"]
[Date "2024.05.25"]
[Round "3.6"]
[White "Deuer, Marius"]
[Black "Samunenkov, Ihor"]
[Result "1/2-1/2"]
[ECO "E42"]
[WhiteElo "2436"]
[BlackElo "2547"]
[Annotator "TA"]
[PlyCount "79"]
[EventDate "2024.05.20"]
[EventType "swiss"]
[EventCountry "HUN"]
[SourceTitle "playchess.com"]
[Source "ChessBase"]
[SourceQuality "1"]
[TimeControl "40/5400+30:1800+30"]

{[%evp 9,79,15,41,0,0,0,0,0,0,0,0,-2,15,0,0,0,0,-14,-10,-9,0,-20,-13,-14,28,-8,-12,-7,-30,-14,0,0,0,0,14,26,27,26,41,34,47,25,47,23,36,12,34,22,16,0,0,-31,102,94,105,95,100,70,119,116,118,17,16,0,0,0,0,0,0,0,0,0]} 1. d4 {[%emt 0:00:33]} Nf6 {[%emt 0:00:41]} 2. c4 {[%emt 0:00:07]} e6 {[%emt 0:00:08]} 3. Nc3 {[%emt 0:00:06]} Bb4 {[%emt 0:00:08]} 4. e3 {[%emt 0:00:06]} c5 {[%emt 0:00:19]} 5. Nge2 {[%emt 0:00:09]} d6 {[%emt 0:00:08]} 6. Bd2 {[%emt 0:17:38]} O-O {[%emt 0:02:48]} 7. g3 {[%emt 0:05:36]} cxd4 {[%emt 0:10:46]} 8. Nxd4 {[%emt 0:07:18]} e5 {[%emt 0:03:22]} 9. Nc2 {[%emt 0:14:14]} Bxc3 {[%emt 0:17:49]} 10. Bxc3 {[%emt 0:00:18]} Ne4 {[%emt 0:00:11]} 11. Qd3 {[%emt 0:03:30]} Nc5 {[%emt 0:10:33]} 12. Qd2 {[%emt 0:05:59]} Be6 {[%emt 0:04:16]} 13. f3 {[%emt 0:01:22]} Nc6 {[%emt 0:03:48]} 14. Be2 {[%emt 0:03:33]} Qb6 {[%emt 0:10:05]} 15. O-O {[%emt 0:04:11]} Rfd8 {[%emt 0:02:10]} 16. Nb4 {[%emt 0:02:51]} a5 {[%emt 0:12:06]} 17. Nxc6 {[%emt 0:07:02]} bxc6 {[%emt 0:00:09]} 18. b3 {[%emt 0:02:51]} f6 {[%emt 0:02:42]} 19. Rfd1 {[%emt 0:00:06][%cal Bf1d1,Bd1d2,Bd2d5][%mdl 32]} d5 {[%emt 0:08:32]} 20. cxd5 {[%emt 0:00:07]} (20. Bf1 {simplifies} dxc4 21. Bxa5 Rxd2 22. Bxb6 Rxd1 23. Rxd1 cxb3 24. axb3 Bxb3 25. Rb1) 20... Bxd5 {[%emt 0:00:10]} 21. Qc2 {[%emt 0:06:17]} Ne6 {[%emt 0:04:04][%cal Bc5e6,Be6g5,Bg5f7][%mdl 32]} 22. Kf2 {[%emt 0:01:40]} Re8 {[%emt 0:01:53]} 23. Rd2 {[%emt 0:04:04]} Ng5 {[%emt 0:01:49]} 24. h4 {[%emt 0:01:39]} Nf7 {[%emt 0:00:29]} 25. Bd3 {[%emt 0:00:37]} g6 {[%emt 0:01:54]} 26. Be4 {[%emt 0:02:32]} f5 {[%emt 0:00:58][%cal Bf6f5,Bf5f4][%mdl 32]} 27. Bxd5 {[%emt 0:03:13]} cxd5 {[%emt 0:00:04]} 28. Rxd5 {[%emt 0:00:04]} f4 {[%emt 0:00:08]} 29. Re1 {[%emt 0:01:38]} Rac8 {[%emt 0:01:39] aiming for ...Qe6.} 30. Qd2 {[%emt 0:01:50]} (30. Rxa5 $2 Qxa5 31. b4 Qxb4 $19) 30... Red8 {[%emt 0:01:08]} (30... Qe6 $15 {keeps the upper hand.} 31. Rc1 (31. Rxa5 $2 Red8 $19) (31. Bxa5 $2 Qh3 $17) (31. gxf4 Rxc3 32. Rxe5 Nxe5 $17) 31... Qh3 32. gxf4 (32. Rxa5 $2 Red8 $19) 32... exf4 33. exf4 Kf8) 31. Rxd8+ $1 $16 {[%emt 0:00:44]} (31. Bxe5 $2 fxe3+ 32. Rxe3 Nxe5 $19 (32... Rxd5 33. Qxd5 Rc2+ 34. Kf1 $16)) 31... Rxd8 {[%emt 0:00:04] [#]} 32. Qe2 {[%emt 0:00:08]} fxg3+ {[%emt 0:00:48]} 33. Kxg3 {[%emt 0:00:22]} e4 {[%emt 0:00:17] [#]} 34. Qc4 $1 {[%emt 0:02:10]} (34. fxe4 $2 {perishes.} Qc7+ 35. Kf2 Qxc3 $19) 34... exf3 {[%emt 0:00:25]} 35. Rf1 {[%emt 0:00:25]} (35. Kxf3 $16 {Ke2 is the strong threat.} Qb7+ 36. Kf2) 35... Qxe3 $11 {[%emt 0:00:49] The position is equal.} 36. Rxf3 {[%emt 0:00:05][%csl Gf3][%cal Rc4f7]} Qg1+ {[%emt 0:00:10]} 37. Kh3 {[%emt 0:00:05][%csl Gf3][%cal Rc4f7] Really sharp!} Qh1+ {[%emt 0:00:38]} 38. Kg3 {[%emt 0:00:06][%csl Gf3][%cal Rc4f7]} Qg1+ {[%emt 0:00:04]} 39. Kh3 {[%emt 0:00:06][%csl Gf3][%cal Rc4f7]} Qh1+ {[%emt 0:00:45]} 40. Kg3 {[%emt 0:00:00] Weighted Error Value: White=0.13 (very precise) /Black=0.10 (very precise) .  Mistake:       	White=1     	Black=2      Inaccurate:     	White=2     	Black=1      OK:         	White=10    	Black=13     Best:        	White=4     	Black=6      Strong:       	White=2     	---} 1/2-1/2

[Event "Budapest Chess Festival 2024"]
[Site "Budapest"]
[Date "2024.05.25"]
[Round "3.7"]
[White "Hera, Imre Jr."]
[Black "Gschnitzer, Adrian"]
[Result "0-1"]
[ECO "A04"]
[WhiteElo "2542"]
[BlackElo "2431"]
[Annotator "RC"]
[PlyCount "58"]
[EventDate "2024.05.20"]
[EventType "swiss"]
[EventCountry "HUN"]
[SourceTitle "playchess.com"]
[Source "ChessBase"]
[SourceQuality "1"]
[TimeControl "40/5400+30:1800+30"]

1. Nf3 {[%emt 0:01:05]} c5 {[%emt 0:01:01]} 2. g3 {[%emt 0:00:27]} Nf6 {[%emt 0:00:21]} 3. Bg2 {[%emt 0:00:19]} Nc6 {[%emt 0:00:23]} 4. O-O {[%emt 0:00:23]} e5 {[%emt 0:00:16]} 5. e4 {[%emt 0:00:09]} d6 {[%emt 0:01:07]} 6. d3 {[%emt 0:00:30]} g6 {[%emt 0:00:44]} 7. c3 {[%emt 0:02:31]} Bg7 {[%emt 0:00:35]} 8. a3 {[%emt 0:01:18]} O-O {[%emt 0:00:44]} 9. Nbd2 {[%emt 0:00:27]} h6 {[%emt 0:01:26]} 10. b4 {[%emt 0:00:18]} Be6 {[%emt 0:10:21]} 11. Rb1 {[%emt 0:03:38]} b6 {[%emt 0:01:50]} 12. Bb2 {[%emt 0:00:38]} Qd7 {[%emt 0:13:00]} 13. d4 {[%emt 0:15:26]} exd4 {[%emt 0:14:47]} 14. cxd4 {[%emt 0:01:07]} Nxd4 {[%emt 0:05:57]} 15. Nxd4 {[%emt 0:00:02]} cxd4 {[%emt 0:00:10]} 16. Bxd4 {[%emt 0:00:04]} Rac8 {[%emt 0:04:34]} 17. Re1 {[%emt 0:12:26]} Rc7 {[%emt 0:07:02]} 18. Rc1 {[%emt 0:10:55]} Rfc8 {[%emt 0:03:52]} 19. Rxc7 {[%emt 0:00:16]} Qxc7 {[%emt 0:01:02]} 20. Qa1 {[%emt 0:03:49]} Qc2 {[%emt 0:00:23]} 21. Nf3 {[%emt 0:02:40]} Ng4 {[%emt 0:04:05]} 22. Bxg7 {[%emt 0:23:17]} Qxf2+ {[%emt 0:00:19]} 23. Kh1 {[%emt 0:00:01]} Rc2 {[%emt 0:01:11]} 24. Nh4 {[%emt 0:00:14]} Ra2 {[%emt 0:01:00]} 25. Qc3 {[%emt 0:02:09]} Rxa3 {[%emt 0:03:17]} 26. Qc1 {[%emt 0:11:07]} Kxg7 {[%emt 0:00:28]} 27. Rf1 {[%emt 0:00:06]} Qe3 {[%emt 0:01:01]} 28. Qb2+ {[%emt 0:00:01]} Kg8 {[%emt 0:03:34]} 29. Rf3 {[%emt 0:03:55]} Ra2 {[%emt 0:00:20]} 0-1

[Event "Budapest Chess Festival 2024"]
[Site "Budapest"]
[Date "2024.05.25"]
[Round "3.8"]
[White "Kantor, Gergely"]
[Black "Vanczak, Tamas"]
[Result "1-0"]
[ECO "B12"]
[WhiteElo "2527"]
[BlackElo "2412"]
[Annotator "RC"]
[PlyCount "99"]
[EventDate "2024.05.20"]
[EventType "swiss"]
[EventCountry "HUN"]
[SourceTitle "playchess.com"]
[Source "ChessBase"]
[SourceQuality "1"]
[TimeControl "40/5400+30:1800+30"]

1. e4 {[%emt 0:00:34]} c6 {[%emt 0:00:45]} 2. d4 {[%emt 0:00:29]} d5 {[%emt 0:00:06]} 3. e5 {[%emt 0:00:03]} Bf5 {[%emt 0:00:11]} 4. h4 {[%emt 0:01:06]} h5 {[%emt 0:00:14]} 5. Bd3 {[%emt 0:01:27]} Bxd3 {[%emt 0:00:08]} 6. Qxd3 {[%emt 0:00:02]} Qa5+ {[%emt 0:00:15]} 7. Nd2 {[%emt 0:00:55]} e6 {[%emt 0:00:16]} 8. Ngf3 {[%emt 0:01:49]} Nh6 {[%emt 0:00:30]} 9. O-O {[%emt 0:00:15]} Nf5 {[%emt 0:00:11]} 10. a4 {[%emt 0:00:07]} Be7 {[%emt 0:06:10]} 11. Nb3 {[%emt 0:00:47]} Qa6 {[%emt 0:09:34]} 12. Qd1 {[%emt 0:00:55]} Nd7 {[%emt 0:01:11]} 13. g3 {[%emt 0:00:39]} c5 {[%emt 0:06:11]} 14. c3 {[%emt 0:08:44]} Rc8 {[%emt 0:05:42]} 15. Re1 {[%emt 0:01:48]} cxd4 {[%emt 0:07:04]} 16. Nbxd4 {[%emt 0:06:18]} Nxd4 {[%emt 0:00:24]} 17. cxd4 {[%emt 0:07:42]} O-O {[%emt 0:12:15]} 18. Nh2 {[%emt 0:26:27]} Qc4 {[%emt 0:06:32]} 19. Be3 {[%emt 0:01:22]} g6 {[%emt 0:04:04]} 20. Rc1 {[%emt 0:17:44]} Qb4 {[%emt 0:00:44]} 21. Qe2 {[%emt 0:05:43]} Rc4 {[%emt 0:09:33]} 22. g4 {[%emt 0:02:01]} Rfc8 {[%emt 0:01:21]} 23. Rcd1 {[%emt 0:03:11]} Qxa4 {[%emt 0:03:56]} 24. Qf3 {[%emt 0:05:04]} Qc2 {[%emt 0:02:25]} 25. Qg3 {[%emt 0:00:41]} Bb4 {[%emt 0:12:47]} 26. Rf1 {[%emt 0:00:24]} Qe4 {[%emt 0:00:32]} 27. gxh5 {[%emt 0:00:35]} Kh8 {[%emt 0:01:02]} 28. hxg6 {[%emt 0:01:44]} Qxg6 {[%emt 0:00:32]} 29. Ng4 {[%emt 0:01:32]} Be7 {[%emt 0:03:38]} 30. h5 {[%emt 0:02:08]} Qh7 {[%emt 0:01:00]} 31. Qh3 {[%emt 0:01:05]} Rg8 {[%emt 0:00:39]} 32. Kh2 {[%emt 0:00:18]} f5 {[%emt 0:02:55]} 33. exf6 {[%emt 0:00:36]} Bd6+ {[%emt 0:00:36]} 34. f4 {[%emt 0:01:44]} Qf5 {[%emt 0:01:59]} 35. Ne5 {[%emt 0:00:21]} Rc2+ {[%emt 0:01:15]} 36. Rd2 {[%emt 0:00:10]} Rxd2+ {[%emt 0:00:32]} 37. Bxd2 {[%emt 0:00:01]} Qc2 {[%emt 0:00:16]} 38. Rf2 {[%emt 0:01:24]} Nxf6 {[%emt 0:00:13]} 39. Ng6+ {[%emt 0:01:20]} Kh7 {[%emt 0:00:24]} 40. Qxe6 {[%emt 0:00:00]} Nxh5 {[%emt 0:00:00]} 41. Ne5 {[%emt 0:07:03]} Bxe5 {[%emt 0:15:24]} 42. Qf7+ {[%emt 0:02:05]} Bg7 {[%emt 0:02:44]} 43. Qxh5+ {[%emt 0:03:21]} Bh6 {[%emt 0:00:07]} 44. f5 {[%emt 0:02:52]} Qc7+ {[%emt 0:00:33]} 45. Bf4 {[%emt 0:01:25]} Qg7 {[%emt 0:00:09]} 46. Kh3 {[%emt 0:00:50]} Qf6 {[%emt 0:05:16]} 47. Re2 {[%emt 0:02:12]} Qa6 {[%emt 0:02:06]} 48. Re7+ {[%emt 0:03:11]} Rg7 {[%emt 0:00:04]} 49. Rxg7+ {[%emt 0:00:19]} Kxg7 {[%emt 0:00:05]} 50. f6+ {[%emt 0:00:07]} 1-0

[Event "Budapest Chess Festival 2024"]
[Site "Budapest"]
[Date "2024.05.25"]
[Round "3.9"]
[White "Aizenberg, Benny"]
[Black "Szpar, Milosz"]
[Result "1/2-1/2"]
[ECO "C09"]
[WhiteElo "2403"]
[BlackElo "2512"]
[Annotator "TA"]
[PlyCount "79"]
[EventDate "2024.05.20"]
[EventType "swiss"]
[EventCountry "HUN"]
[SourceTitle "playchess.com"]
[Source "ChessBase"]
[SourceQuality "1"]
[TimeControl "40/5400+30:1800+30"]

{[%evp 18,79,42,15,13,11,70,73,77,80,84,67,66,71,59,52,58,52,86,74,81,61,86,85,180,96,87,89,88,13,39,40,76,8,28,0,0,0,0,1,4,0,10,0,0,0,0,0,0,0,0,0,0,0,0,0,0,0,0,0,0,0,0,0]} 1. e4 {[%emt 0:00:32]} e6 {[%emt 0:00:41]} 2. d4 {[%emt 0:00:06]} d5 {[%emt 0:00:08]} 3. Nd2 {[%emt 0:00:04]} c5 {[%emt 0:00:21]} 4. exd5 {[%emt 0:00:39]} exd5 {[%emt 0:00:05]} 5. Ngf3 {[%emt 0:00:06]} Nc6 {[%emt 0:00:05]} 6. Bb5 {[%emt 0:00:04]} cxd4 {[%emt 0:00:04]} 7. O-O {[%emt 0:00:52]} Bd6 {[%emt 0:00:08]} 8. Nb3 {[%emt 0:02:18][%cal Bd2b3,Bb3d4,Bd4c6,Bc6b4,Bb4d5][%mdl 32]} Nge7 {[%emt 0:00:05]} 9. Nbxd4 {[%emt 0:01:21]} O-O {[%emt 0:00:05]} 10. h3 {[%emt 0:05:32]} Bc7 {[%emt 0:01:24]} 11. Bg5 {[%emt 0:06:51] Nxc6 would now be deadly.} Qd6 {[%emt 0:08:15]} (11... f6 $11 12. Be3 a6) 12. Bxc6 $1 $14 {[%emt 0:04:16]} bxc6 {[%emt 0:03:43] White is better.} 13. Bxe7 {[%emt 0:03:53]} Qxe7 {[%emt 0:00:04]} 14. Nxc6 {[%emt 0:00:59]} Qf6 {[%emt 0:00:05][%csl LRb2,LRc6]} 15. Nb4 {[%emt 0:05:23]} (15. Qxd5 Bb7 16. Nfd4 (16. Ne7+ $2 Qxe7 17. Qg5 Qxg5 $19) 16... Rad8 $17) 15... Qxb2 {[%emt 0:06:12]} 16. Rb1 {[%emt 0:04:34]} ({Much weaker is} 16. Qxd5 Qxb4 17. Rab1 (17. Qxa8 Bxh3 18. Qc6 Bxg2 $11) 17... Qf4 (17... Be6 18. Qxa8 Qa4 19. Qb7 $16) 18. Qxa8 Bxh3 $11) 16... Qa3 {[%emt 0:01:22]} 17. Nxd5 {[%emt 0:02:40]} Bd8 {[%emt 0:06:40][%cal Oc8f5]} 18. Nd4 $1 {[%emt 0:12:17]} Ba6 {[%emt 0:10:22]} 19. Re1 {[%emt 0:02:45]} Bc4 {[%emt 0:08:58] Prevents Rb3} 20. Nf5 $1 {[%emt 0:03:04] Hoping for Qd4.} Qc5 {[%emt 0:05:30]} (20... Bxd5 $16 {was worth a try.} 21. Qxd5 Rc8) 21. Re5 {[%emt 0:05:37]} (21. Qg4 $1 $18 {[%csl Gf5][%cal Rg4g7]} g6 22. Nde7+ Bxe7 23. Nxe7+ Kg7 24. Qg3) 21... Kh8 $16 {[%emt 0:03:48][%cal Od8f6] [#]} 22. Qg4 $1 {[%emt 0:08:38][%csl Gf5][%cal Rg4g7]} g6 {[%emt 0:02:21][%cal Oc4a2] [#] aiming for ...Bxa2!} 23. Nfe3 {[%emt 0:02:22]} (23. Qf4 $1 $16 {[%cal Rf4h6] Strongly threatening Qh6!} Bxd5 24. Ne3) 23... Bxa2 {[%emt 0:02:04] This pair of bishops is nice.} (23... f6 $5) 24. Rb7 {[%emt 0:02:16] And now c4 would win.} Bf6 {[%emt 0:12:34] [#]} 25. Qe4 {[%emt 0:01:15] White is much more active.} Bxd5 {[%emt 0:07:02]} (25... Bg7 26. Ree7) 26. Nxd5 {[%emt 0:01:04]} (26. Rxd5 $5 Qc6 27. Rxf7 Rxf7 28. Rd8+ Rxd8 29. Qxc6 $11) 26... Qd6 {[%emt 0:07:13] The position is equal.} 27. Nxf6 {[%emt 0:02:33]} Qxf6 {[%emt 0:00:04]} 28. Ree7 {[%emt 0:00:24][%cal Oe7f7]} Rad8 {[%emt 0:02:09]} 29. Qe2 {[%emt 0:01:58]} a6 {[%emt 0:05:16]} 30. c4 {[%emt 0:07:48]} Rc8 {[%emt 0:02:08]} 31. g3 {[%emt 0:00:52]} Kg8 {[%emt 0:00:06]} 32. Qa2 {[%emt 0:00:37]} Rc5 {[%emt 0:01:12]} 33. Ra7 {[%emt 0:01:16]} a5 {[%emt 0:01:13]} 34. Rec7 {[%emt 0:02:43]} Rxc7 {[%emt 0:00:42]} 35. Rxc7 $11 {[%emt 0:00:05] KQR-KQR} Qb6 {[%emt 0:03:14]} 36. Re7 {[%emt 0:01:25]} Qc5 {[%emt 0:00:30]} 37. Rd7 {[%emt 0:00:52][%cal Be7d7,Bd7d5,Bd5a5][%mdl 32]} Rc8 {[%emt 0:01:29]} 38. Rd5 {[%emt 0:01:37]} Qxc4 {[%emt 0:00:39]} 39. Qxc4 {[%emt 0:00:04]} Rxc4 {[%emt 0:00:06]} 40. Rxa5 {[%emt 0:00:00] Weighted Error Value: White=0.12 (very precise) /Black=0.13 (very precise) .  Mistake:       	White=3     	Black=2      Inaccurate:     	White=1     	Black=3      OK:         	White=10    	Black=12     Best:        	White=3     	---        Strong:       	White=3     	---} 1/2-1/2